fUST/lending_fUST_20250912
["ID","MTS","AMOUNT","RATE_DAILY","PERIOD"]
[384885567,1757616651574,-435.06,0.00014284,2]
[384885568,1757616651583,-494.62,0.00014284,2]
[384885569,1757616651592,-480.0,0.00014284,2]
[384885570,1757616651601,-480.0,0.00014284,2]
[384885571,1757616651611,-480.0,0.00014284,2]
[384885572,1757616651619,-480.0,0.00014284,2]
[384885573,1757616651628,-891.74,0.00014284,2]
[384885574,1757616651638,-480.0,0.00014284,2]
[384885575,1757616651648,-480.0,0.00014284,2]
[384885576,1757616651657,-401.7,0.00014284,2]
[384885577,1757616651666,-625.46,0.00014284,2]
[384885578,1757616651675,-480.0,0.00014284,2]
[384885579,1757616651684,-3895.52,0.00014284,2]
[384885580,1757616651693,-480.0,0.00014284,2]
[384885581,1757616651702,-533.98,0.00014284,2]
[384885582,1757616651711,-657.15,0.00014284,2]
[384885583,1757616651720,-480.0,0.00014284,2]
[384885584,1757616651730,-480.0,0.00014284,2]
[384885585,1757616651739,-957.28,0.00014284,2]
[384885586,1757616651748,-480.0,0.00014284,2]
[384885587,1757616651759,-214.42,0.00014284,2]
[384885588,1757616651768,-812.49,0.00014284,2]
[384885589,1757616651778,-1134.0,0.00014284,2]
[384885590,1757616651787,-204.92868896,0.00014284,2]
[384885591,1757616651797,-629.06,0.00014284,2]
[384885592,1757616651806,-480.0,0.00014284,2]
[384885593,1757616651815,-480.0,0.00014284,2]
[384885594,1757616651825,-480.0,0.00014284,2]
[384885595,1757616651834,-480.0,0.00014284,2]
[384885596,1757616651843,-8137.76,0.00014284,2]
[384885597,1757616651853,-1732.18,0.00014284,2]
[384885598,1757616651863,-500.0,0.00014285,2]
[384885599,1757616651872,-480.0,0.00014285,2]
[384885600,1757616651881,-480.0,0.00014285,2]
[384885601,1757616651891,-480.0,0.00014285,2]
[384885602,1757616651900,-480.0,0.00014285,2]
[384885603,1757616651909,-480.0,0.00014285,2]
[384885604,1757616651919,-530.53700526,0.00014285,2]
[384885605,1757616651929,-480.0,0.00014285,2]
[384885606,1757616651938,-480.0,0.00014285,2]
[384885607,1757616651950,-480.0,0.00014285,2]
[384885608,1757616651960,-500.37,0.00014285,2]
[384885609,1757616651970,-480.0,0.00014285,2]
[384885610,1757616651980,-174.4,0.00014285,2]
[384885611,1757616651990,-352.08,0.00014285,2]
[384885612,1757616652001,-480.0,0.00014285,2]
[384885613,1757616652012,-564.82,0.00014285,2]
[384885614,1757616652024,-800.0,0.00014285,2]
[384885615,1757616652039,-480.0,0.00014285,2]
[384885616,1757616652048,-587.18,0.00014285,2]
[384885617,1757616652057,-204.48,0.00014285,2]
[384885618,1757616652066,-480.0,0.00014285,2]
[384885619,1757616652076,-480.0,0.00014285,2]
[384885620,1757616652086,-172.6,0.00014285,2]
[384885621,1757616652095,-480.0,0.00014285,2]
[384885622,1757616652104,-480.0,0.00014285,2]
[384885623,1757616652116,-480.0,0.00014285,2]
[384885624,1757616652125,-365.7,0.00014285,2]
[384885625,1757616652135,-703.23,0.00014285,2]
[384885626,1757616652144,-780.8,0.00014285,2]
[384885627,1757616652155,-480.0,0.00014285,2]
[384885628,1757616652167,-480.0,0.00014285,2]
[384885629,1757616652179,-480.0,0.00014285,2]
[384885630,1757616652189,-653.5,0.00014285,2]
[384885631,1757616652200,-480.0,0.00014285,2]
[384885632,1757616652210,-480.0,0.00014285,2]
[384885633,1757616652220,-2612.8068955,0.00014291,2]
[384885634,1757616652230,-875.7966816,0.00014291,2]
[384885635,1757616652240,-4418.8842872,0.00014291,2]
[384885636,1757616652251,-6986.5738062,0.00014291,2]
[384885637,1757616652261,-1208.4099373,0.00014291,2]
[384885638,1757616652271,-151.0,0.00014292,2]
[384885639,1757616652281,-480.0,0.00014292,2]
[384885640,1757616652290,-480.0,0.00014292,2]
[384885641,1757616652300,-195.8,0.00014293,2]
[384885642,1757616652311,-172.09213462,0.00014293,2]
[384885643,1757616652320,-480.0,0.00014294,2]
[384885644,1757616652330,-500.0,0.00014294,2]
[384885645,1757616652340,-492.18,0.00014294,2]
[384885646,1757616652349,-157.0,0.00014294,2]
[384885647,1757616652359,-157.0,0.00014294,2]
[384885648,1757616652369,-157.0,0.00014294,2]
[384885649,1757616652378,-157.0,0.00014294,2]
[384885650,1757616652387,-157.0,0.00014294,2]
[384885651,1757616652397,-500.0,0.00014294,2]
[384885652,1757616652407,-186.0,0.00014294,2]
[384885653,1757616652418,-157.0,0.00014294,2]
[384885654,1757616652427,-500.0,0.00014294,2]
[384885655,1757616652438,-157.0,0.00014294,2]
[384885656,1757616652448,-290.913793,0.00014294,2]
[384885657,1757616652459,-157.0,0.00014294,2]
[384885658,1757616652468,-157.0,0.00014294,2]
[384885659,1757616652477,-224.52,0.00014294,2]
[384885660,1757616652487,-300.0,0.00014299,2]
[384885661,1757616652496,-300.0,0.00014299,2]
[384885662,1757616652505,-300.0,0.00014299,2]
[384885663,1757616652515,-300.0,0.00014299,2]
[384885664,1757616652524,-300.0,0.00014299,2]
[384885665,1757616652533,-300.0,0.00014299,2]
[384885666,1757616652543,-300.0,0.00014299,2]
[384885667,1757616652552,-300.0,0.00014299,2]
[384885668,1757616652561,-300.0,0.00014299,2]
[384885669,1757616652571,-300.0,0.00014299,2]
[384885670,1757616652580,-300.0,0.00014299,2]
[384885671,1757616652591,-300.0,0.00014299,2]
[384885672,1757616652601,-300.0,0.00014299,2]
[384885673,1757616652612,-300.0,0.00014299,2]
[384885674,1757616652621,-300.0,0.00014299,2]
[384885675,1757616652630,-168.0,0.00014328,2]
[384885676,1757616652639,-219.0,0.00014333,2]
[384885677,1757616652648,-800.0,0.00014343,2]
[384885678,1757616652657,-800.0,0.0001435,2]
[384885679,1757616652667,-800.0,0.00014367,2]
[384885680,1757616652676,-800.0,0.00014387,2]
[384885681,1757616652686,-5092.0,0.00014396,2]
[384885682,1757616652695,-800.0,0.00014414,2]
[384885683,1757616652704,-151.0,0.00014417,2]
[384885684,1757616652714,-10583.28703691,0.00014419,2]
[384885685,1757616652723,-328.0,0.0001442,2]
[384885686,1757616652732,-328.0,0.0001442,2]
[384885687,1757616652741,-336.81556363,0.0001442,2]
[384885688,1757616652751,-945.33741205,0.00014444,2]
[384885689,1757616652760,-168.0,0.00014461,2]
[384885690,1757616652769,-168.0,0.00014473,2]
[384885691,1757616652779,-1948.81,0.00014557,2]
[384885692,1757616652788,-1319.65,0.00014557,2]
[384885693,1757616652797,-480.0,0.00014557,2]
[384885694,1757616652810,-571.02,0.00014557,2]
[384885695,1757616652819,-480.0,0.00014557,2]
[384885696,1757616652828,-975.89,0.00014557,2]
[384885697,1757616652838,-480.0,0.00014557,2]
[384885698,1757616652846,-707.37,0.00014557,2]
[384885699,1757616652855,-937.35,0.00014557,2]
[384885700,1757616652864,-480.0,0.00014557,2]
[384885701,1757616652874,-531.72,0.00014557,2]
[384885702,1757616652883,-480.0,0.00014557,2]
[384885703,1757616652892,-795.41,0.00014557,2]
[384885704,1757616652901,-480.0,0.00014557,2]
[384885705,1757616652914,-480.0,0.00014557,2]
[384885706,1757616652923,-480.0,0.00014557,2]
[384885707,1757616652932,-480.0,0.00014557,2]
[384885708,1757616652941,-694.92,0.00014557,2]
[384885709,1757616652953,-480.0,0.00014557,2]
[384885710,1757616652963,-431.2,0.00014558,2]
[384885711,1757616652972,-480.0,0.00014558,2]
[384885712,1757616652982,-480.0,0.00014558,2]
[384885713,1757616652991,-480.0,0.00014558,2]
[384885714,1757616653002,-480.0,0.00014558,2]
[384885715,1757616653012,-891.74,0.00014558,2]
[384885716,1757616653022,-480.0,0.00014558,2]
[384885717,1757616653033,-3895.52,0.00014558,2]
[384885718,1757616653042,-480.0,0.00014558,2]
[384885719,1757616653052,-657.15,0.00014558,2]
[384885720,1757616653062,-480.0,0.00014558,2]
[384885721,1757616653071,-480.0,0.00014558,2]
[384885722,1757616653081,-957.28,0.00014558,2]
[384885723,1757616653090,-480.0,0.00014558,2]
[384885724,1757616653099,-812.49,0.00014558,2]
[384885725,1757616653109,-1134.0,0.00014558,2]
[384885726,1757616653119,-480.0,0.00014558,2]
[384885727,1757616653128,-480.0,0.00014558,2]
[384885728,1757616653137,-480.0,0.00014558,2]
[384885729,1757616653147,-295.56,0.00014558,2]
[384885730,1757616653156,-8137.76,0.00014558,2]
[384885731,1757616653166,-1732.18,0.00014558,2]
[384885732,1757616653175,-480.0,0.00014559,2]
[384885733,1757616653185,-480.0,0.00014559,2]
[384885734,1757616653194,-340.77,0.00014559,2]
[384885735,1757616653204,-507.42,0.00014559,2]
[384885736,1757616653213,-564.82,0.00014559,2]
[384885737,1757616653222,-480.0,0.00014559,2]
[384885738,1757616653232,-587.18,0.00014559,2]
[384885739,1757616653242,-482.54,0.00014559,2]
[384885740,1757616653251,-480.0,0.00014559,2]
[384885741,1757616653263,-703.23,0.00014559,2]
[384885742,1757616653273,-780.8,0.00014559,2]
[384885743,1757616653282,-653.5,0.00014559,2]
[384885744,1757616653291,-480.0,0.00014566,2]
[384885745,1757616653301,-270.4,0.00014566,2]
[384885746,1757616653311,-500.0,0.00014568,2]
[384885747,1757616653320,-253.60309628,0.00014568,2]
[384885748,1757616653330,-244.0,0.00014568,2]
[384885749,1757616653340,-157.0,0.00014568,2]
[384885750,1757616653349,-206.67670021,0.00014568,2]
[384885751,1757616653359,-500.0,0.00014568,2]
[384885752,1757616653369,-225.69649965,0.00014568,2]
[384885753,1757616653378,-500.0,0.00014568,2]
[384885754,1757616653387,-177.82478668,0.00014568,2]
[384885755,1757616653397,-157.0,0.00014568,2]
[384885756,1757616653406,-2695.0,0.00014568,2]
[384885757,1757616653415,-1006.97,0.00014568,2]
[384885758,1757616653424,-2155.0,0.00014568,2]
[384885759,1757616653433,-718.729,0.00014568,2]
[384885760,1757616653443,-250.0,0.00014568,2]
[384885761,1757616653452,-600.0,0.00014579,2]
[384885762,1757616653462,-172.09213462,0.00014621,2]
[384885763,1757616653471,-1001.19960099,0.00014721,2]
[384885764,1757616653480,-1000.0,0.00014721,2]
[384885765,1757616653489,-500.0,0.00014769,2]
[384885766,1757616653498,-500.0,0.00014776,2]
[384885767,1757616653509,-500.0,0.00014776,2]
[384885768,1757616653519,-502.61682343,0.00014777,2]
[384885769,1757616653528,-485.04805454,0.00014777,2]
[384885770,1757616653537,-500.0,0.00014777,2]
[384885771,1757616653546,-500.0,0.00014777,2]
[384885772,1757616653556,-500.0,0.00014787,2]
[384885773,1757616653566,-151.0,0.000148,2]
[384885774,1757616653575,-168.0,0.00014813,2]
[384885775,1757616653665,-2183.31810187,0.00014825,2]
[384885776,1757616653686,-1948.81,0.00014831,2]
[384885777,1757616653696,-1319.65,0.00014831,2]
[384885778,1757616653705,-480.0,0.00014831,2]
[384885779,1757616653715,-480.0,0.00014831,2]
[384885780,1757616653724,-975.89,0.00014831,2]
[384885781,1757616653733,-627.57,0.00014831,2]
[384885782,1757616653743,-707.37,0.00014831,2]
[384885783,1757616653753,-937.35,0.00014831,2]
[384885784,1757616653766,-419.2,0.00014831,2]
[384885785,1757616653776,-480.0,0.00014831,2]
[384885786,1757616653786,-795.41,0.00014831,2]
[384885787,1757616653796,-480.0,0.00014831,2]
[384885788,1757616653805,-480.0,0.00014831,2]
[384885789,1757616653815,-480.0,0.00014831,2]
[384885790,1757616653825,-250.98,0.00014831,2]
[384885791,1757616653834,-694.92,0.00014831,2]
[384885792,1757616653843,-480.0,0.00014831,2]
[384885793,1757616653852,-480.0,0.00014832,2]
[384885794,1757616653862,-480.0,0.00014832,2]
[384885795,1757616653871,-480.0,0.00014832,2]
[384885796,1757616653881,-480.0,0.00014832,2]
[384885797,1757616653890,-891.74,0.00014832,2]
[384885798,1757616653901,-480.0,0.00014832,2]
[384885799,1757616653910,-3895.52,0.00014832,2]
[384885800,1757616653920,-480.0,0.00014832,2]
[384885801,1757616653930,-657.15,0.00014832,2]
[384885802,1757616653939,-480.0,0.00014832,2]
[384885803,1757616653950,-480.0,0.00014832,2]
[384885804,1757616653960,-957.28,0.00014832,2]
[384885805,1757616653970,-480.0,0.00014832,2]
[384885806,1757616653979,-812.49,0.00014832,2]
[384885807,1757616653988,-1134.0,0.00014832,2]
[384885808,1757616653998,-535.41,0.00014832,2]
[384885809,1757616654008,-480.0,0.00014832,2]
[384885810,1757616654017,-480.0,0.00014832,2]
[384885811,1757616654027,-8137.76,0.00014832,2]
[384885812,1757616654036,-231.54,0.00014833,2]
[384885813,1757616654046,-480.0,0.00014833,2]
[384885814,1757616654056,-564.82,0.00014833,2]
[384885815,1757616654065,-575.16,0.00014833,2]
[384885816,1757616654075,-587.18,0.00014833,2]
[384885817,1757616654085,-480.0,0.00014833,2]
[384885818,1757616654095,-703.23,0.00014833,2]
[384885819,1757616654104,-780.8,0.00014833,2]
[384885820,1757616654113,-653.5,0.00014833,2]
[384885821,1757616654122,-150.354,0.00014833,2]
[384885822,1757616654132,-150.404,0.00014834,2]
[384885823,1757616654141,-196.091,0.00014834,2]
[384885824,1757616654151,-150.238,0.00014834,2]
[384885825,1757616654160,-246.21,0.00014834,2]
[384885826,1757616654170,-500.90463239,0.0001484,2]
[384885827,1757616654179,-500.0,0.0001484,2]
[384885828,1757616654189,-500.0,0.0001484,2]
[384885829,1757616654198,-156.45695078,0.0001484,2]
[384885830,1757616654207,-503.08097958,0.0001484,2]
[384885831,1757616654218,-500.0,0.0001484,2]
[384885832,1757616654228,-480.0,0.0001484,2]
[384885833,1757616654237,-500.0,0.00014842,2]
[384885834,1757616654247,-186.0,0.00014842,2]
[384885835,1757616654258,-500.0,0.00014842,2]
[384885836,1757616654267,-157.0,0.00014842,2]
[384885837,1757616654277,-151.0,0.000149,2]
[384885838,1757616654287,-219.0,0.00014945,2]
[384885839,1757616654296,-168.0,0.00014948,2]
[384885840,1757616654306,-500.0,0.00015036,2]
[384885841,1757616654315,-500.87044232,0.00015036,2]
[384885842,1757616654324,-501.03122527,0.00015036,2]
[384885843,1757616654334,-500.0,0.00015036,2]
[384885844,1757616654343,-500.22444433,0.00015036,2]
[384885845,1757616654352,-500.0,0.00015037,2]
[384885846,1757616654362,-480.0,0.00015044,2]
[384885847,1757616654371,-420.0,0.00015044,2]
[384885848,1757616654380,-219.0,0.00015064,2]
[384885849,1757616654390,-221.496823,0.00015068,2]
[384885850,1757616654399,-500.0,0.00015068,2]
[384885851,1757616654409,-500.0,0.00015081,2]
[384885852,1757616654418,-1558.9153322,0.00015084,2]
[384885853,1757616654427,-735.0,0.00015095,2]
[384885854,1757616654436,-219.0,0.00015097,2]
[384885855,1757616654446,-151.0,0.000151,2]
[384885856,1757616654455,-1948.81,0.00015105,2]
[384885857,1757616654464,-1319.65,0.00015105,2]
[384885858,1757616654474,-480.0,0.00015105,2]
[384885859,1757616654483,-480.0,0.00015105,2]
[384885860,1757616654492,-975.89,0.00015105,2]
[384885861,1757616654502,-707.37,0.00015105,2]
[384885862,1757616654514,-937.35,0.00015105,2]
[384885863,1757616654525,-480.0,0.00015105,2]
[384885864,1757616654536,-795.41,0.00015105,2]
[384885865,1757616654546,-480.0,0.00015105,2]
[384885866,1757616654556,-480.0,0.00015105,2]
[384885867,1757616654566,-480.0,0.00015105,2]
[384885868,1757616654576,-694.92,0.00015105,2]
[384885869,1757616654586,-480.0,0.00015105,2]
[384885870,1757616654595,-480.0,0.00015106,2]
[384885871,1757616654605,-480.0,0.00015106,2]
[384885872,1757616654614,-480.0,0.00015106,2]
[384885873,1757616654623,-480.0,0.00015106,2]
[384885874,1757616654633,-891.74,0.00015106,2]
[384885875,1757616654642,-480.0,0.00015106,2]
[384885876,1757616654651,-3895.52,0.00015106,2]
[384885877,1757616654662,-480.0,0.00015106,2]
[384885878,1757616654672,-657.15,0.00015106,2]
[384885879,1757616654683,-304.48,0.00015106,2]
[384885880,1757616654692,-241.95,0.00015106,2]
[384885881,1757616654702,-957.28,0.00015106,2]
[384885882,1757616654712,-480.0,0.00015106,2]
[384885883,1757616654722,-812.49,0.00015106,2]
[384885884,1757616654730,-1134.0,0.00015106,2]
[384885885,1757616654739,-480.0,0.00015106,2]
[384885886,1757616654748,-480.0,0.00015106,2]
[384885887,1757616654759,-8137.76,0.00015106,2]
[384885888,1757616654769,-480.0,0.00015107,2]
[384885889,1757616654778,-564.82,0.00015107,2]
[384885890,1757616654788,-587.18,0.00015107,2]
[384885891,1757616654797,-480.0,0.00015107,2]
[384885892,1757616654806,-703.23,0.00015107,2]
[384885893,1757616654815,-780.8,0.00015107,2]
[384885894,1757616654824,-653.5,0.00015107,2]
[384885895,1757616654833,-219.0,0.00015107,2]
[384885896,1757616654842,-480.0,0.00015114,2]
[384885897,1757616654852,-214.5590871,0.00015116,2]
[384885898,1757616654861,-500.0,0.00015116,2]
[384885899,1757616654870,-157.0,0.00015116,2]
[384885900,1757616654879,-347.8410277,0.00015261,2]
[384885901,1757616654888,-500.0,0.00015268,2]
[384885902,1757616654898,-219.0,0.00015277,2]
[384885903,1757616654907,-151.0,0.000153,2]
[384885904,1757616654917,-1000.0,0.00015317,2]
[384885905,1757616654926,-1000.0,0.00015324,2]
[384885906,1757616654936,-1000.0,0.00015325,2]
[384885907,1757616654946,-1000.0,0.00015325,2]
[384885908,1757616654959,-636.46717375,0.00015335,2]
[384885909,1757616654969,-219.0,0.00015358,2]
[384885910,1757616654978,-2264.10087164,0.00015373,2]
[384885911,1757616654987,-1948.81,0.00015379,2]
[384885912,1757616654997,-1319.65,0.00015379,2]
[384885913,1757616655006,-480.0,0.00015379,2]
[384885914,1757616655015,-480.0,0.00015379,2]
[384885915,1757616655026,-975.89,0.00015379,2]
[384885916,1757616655036,-707.37,0.00015379,2]
[384885917,1757616655045,-937.35,0.00015379,2]
[384885918,1757616655054,-480.0,0.00015379,2]
[384885919,1757616655063,-795.41,0.00015379,2]
[384885920,1757616655072,-480.0,0.00015379,2]
[384885921,1757616655081,-480.0,0.00015379,2]
[384885922,1757616655090,-480.0,0.00015379,2]
[384885923,1757616655100,-694.92,0.00015379,2]
[384885924,1757616655109,-480.0,0.00015379,2]
[384885925,1757616655118,-480.0,0.0001538,2]
[384885926,1757616655127,-480.0,0.0001538,2]
[384885927,1757616655136,-480.0,0.0001538,2]
[384885928,1757616655145,-480.0,0.0001538,2]
[384885929,1757616655154,-891.74,0.0001538,2]
[384885930,1757616655163,-480.0,0.0001538,2]
[384885931,1757616655173,-3895.52,0.0001538,2]
[384885932,1757616655182,-480.0,0.0001538,2]
[384885933,1757616655191,-657.15,0.0001538,2]
[384885934,1757616655201,-957.28,0.0001538,2]
[384885935,1757616655210,-480.0,0.0001538,2]
[384885936,1757616655219,-812.49,0.0001538,2]
[384885937,1757616655227,-1134.0,0.0001538,2]
[384885938,1757616655237,-480.0,0.0001538,2]
[384885939,1757616655246,-480.0,0.0001538,2]
[384885940,1757616655255,-8137.76,0.0001538,2]
[384885941,1757616655265,-2849.78007031,0.00015381,2]
[384885942,1757616655274,-480.0,0.00015381,2]
[384885943,1757616655283,-564.82,0.00015381,2]
[384885944,1757616655292,-587.18,0.00015381,2]
[384885945,1757616655301,-480.0,0.00015381,2]
[384885946,1757616655311,-703.23,0.00015381,2]
[384885947,1757616655320,-780.8,0.00015381,2]
[384885948,1757616655330,-653.5,0.00015381,2]
[384885949,1757616655341,-1000.0,0.00015388,2]
[384885950,1757616655350,-480.0,0.00015388,2]
[384885951,1757616655360,-512.43274125,0.0001539,2]
[384885952,1757616655370,-243.69792871,0.0001539,2]
[384885953,1757616655379,-151.0,0.000154,2]
[384885954,1757616655388,-169.58336765,0.0001548,2]
[384885955,1757616655399,-151.0,0.000155,2]
[384885956,1757616655408,-766.94472714,0.00015584,2]
[384885957,1757616655418,-1000.0,0.00015584,2]
[384885958,1757616655427,-151.0,0.000156,2]
[384885959,1757616655436,-151.0,0.000156,2]
[384885960,1757616655446,-151.0,0.000156,2]
[384885961,1757616655455,-151.0,0.000156,2]
[384885962,1757616655466,-1948.81,0.00015653,2]
[384885963,1757616655476,-1319.65,0.00015653,2]
[384885964,1757616655485,-480.0,0.00015653,2]
[384885965,1757616655495,-480.0,0.00015653,2]
[384885966,1757616655504,-975.89,0.00015653,2]
[384885967,1757616655514,-707.37,0.00015653,2]
[384885968,1757616655523,-937.35,0.00015653,2]
[384885969,1757616655533,-480.0,0.00015653,2]
[384885970,1757616655542,-795.41,0.00015653,2]
[384885971,1757616655552,-480.0,0.00015653,2]
[384885972,1757616655562,-480.0,0.00015653,2]
[384885973,1757616655571,-480.0,0.00015653,2]
[384885974,1757616655581,-694.92,0.00015653,2]
[384885975,1757616655590,-480.0,0.00015653,2]
[384885976,1757616655599,-480.0,0.00015654,2]
[384885977,1757616655609,-480.0,0.00015654,2]
[384885978,1757616655619,-480.0,0.00015654,2]
[384885979,1757616655629,-480.0,0.00015654,2]
[384885980,1757616655638,-891.74,0.00015654,2]
[384885981,1757616655647,-480.0,0.00015654,2]
[384885982,1757616655656,-3895.52,0.00015654,2]
[384885983,1757616655666,-480.0,0.00015654,2]
[384885984,1757616655675,-657.15,0.00015654,2]
[384885985,1757616655685,-957.28,0.00015654,2]
[384885986,1757616655695,-480.0,0.00015654,2]
[384885987,1757616655704,-812.49,0.00015654,2]
[384885988,1757616655713,-1134.0,0.00015654,2]
[384885989,1757616655724,-335.77083914,0.00015654,2]
[384885990,1757616655733,-480.0,0.00015654,2]
[384885991,1757616655743,-8137.76,0.00015654,2]
[384885992,1757616655752,-480.0,0.00015655,2]
[384885993,1757616655762,-564.82,0.00015655,2]
[384885994,1757616655772,-587.18,0.00015655,2]
[384885995,1757616655781,-480.0,0.00015655,2]
[384885996,1757616655790,-703.23,0.00015655,2]
[384885997,1757616655799,-780.8,0.00015655,2]
[384885998,1757616655809,-653.5,0.00015655,2]
[384885999,1757616655818,-3777.56829857,0.00015659,2]
[384886000,1757616655827,-480.0,0.00015662,2]
[384886001,1757616655836,-277.0,0.000158,2]
[384886002,1757616655846,-140806.77900389,0.000158,2]
[384886005,1757616719215,10000.01,0.00013637,2]
[384886006,1757616719239,4168.73554629,0.00013637,2]
[384886007,1757616745268,300.0,0.00013596,2]
[384886008,1757616768278,300.0,0.00013596,2]
[384886009,1757616893537,691.64278095,0.00013597,2]
[384886010,1757616913811,379.62,0.00012329,2]
[384886011,1757616918908,283.419959,0.00013699,2]
[384886012,1757616925320,480.0,0.00013597,2]
[384886013,1757616934618,339.94,0.00012329,2]
[384886014,1757616951159,960.0,0.00013597,2]
[384886015,1757616976857,1740.0,0.00013597,2]
[384886016,1757617000996,1740.0,0.00013597,2]
[384886017,1757617010043,1740.0,0.00013597,2]
[384886018,1757617027174,237.88,0.00012329,2]
[384886019,1757617027205,1608.74226066,0.00013597,2]
[384886020,1757617035545,1740.0,0.00013597,2]
[384886021,1757617037735,198.23,0.00012329,2]
[384886022,1757617048455,165.19,0.00012329,2]
[384886023,1757617059209,826.0,0.00012329,2]
[384886024,1757617060368,998.6137515,0.00013597,2]
[384886025,1757617077631,4661.38417831,0.00013597,2]
[384886026,1757617085967,300.0,0.00013596,2]
[384886027,1757617109409,300.0,0.00013596,2]
[384886028,1757617110826,786.37,0.00012329,2]
[384886029,1757617119105,300.0,0.00013596,2]
[384886030,1757617135417,300.0,0.00013596,2]
[384886031,1757617145136,300.0,0.00013596,2]
[384886032,1757617161426,300.0,0.00013596,2]
[384886033,1757617170813,300.0,0.00013596,2]
[384886034,1757617172656,655.31,0.00012329,2]
[384886035,1757617188362,300.0,0.00013596,2]
[384886036,1757617196750,300.0,0.00013596,2]
[384886037,1757617214150,300.0,0.00013596,2]
[384886038,1757617223180,300.0,0.00013596,2]
[384886039,1757617238635,300.0,0.00013596,2]
[384886040,1757617247842,300.0,0.00013596,2]
[384886041,1757617263178,300.0,0.00013596,2]
[384886042,1757617271680,300.0,0.00013596,2]
[384886043,1757617275749,546.09,0.00012329,2]
[384886044,1757617286295,455.08,0.00012329,2]
[384886045,1757617286869,300.0,0.00013596,2]
[384886046,1757617294619,300.0,0.00013596,2]
[384886047,1757617310991,300.0,0.00013596,2]
[384886048,1757617319368,300.0,0.00013596,2]
[384886049,1757617334667,300.0,0.00013596,2]
[384886050,1757617342743,300.0,0.00013596,2]
[384886051,1757617358513,265.61945676,0.00013596,2]
[384886052,1757617450821,242.38,0.00012329,2]
[384886053,1757617461323,201.98,0.00012329,2]
[384886054,1757617471846,168.32,0.00012329,2]
[384886055,1757617482551,841.62,0.00012329,2]
[384886056,1757617487110,780.0,0.00013596,2]
[384886057,1757617493375,379.23,0.00012329,2]
[384886058,1757617503836,316.03,0.00012329,2]
[384886059,1757617504360,461.158544,0.00013699,2]
[384886061,1757617509776,300.0,0.00013595,2]
[384886062,1757617514366,263.36,0.00012329,2]
[384886063,1757617526115,2900.06,0.00028387,60]
[384886065,1757617532937,300.0,0.00013595,2]
[384886066,1757617547713,10000.0,0.00012736,2]
[384886067,1757617557177,300.0,0.00013595,2]
[384886068,1757617565637,300.0,0.00013595,2]
[384886069,1757617566059,219.46,0.00012329,2]
[384886070,1757617575082,319.2645905,0.00012736,2]